Cogmind - Beta 15 @@@ ROGUE MODE // 2025.07.27 @ 19:55:09 Player: Nat Result: Destroyed by Y-45 Defender with Heavy Assault Rifle Performance ------------- Evolutions (2) 1000 Regions Visited (6) 1200 Robots Destroyed (22) 110 Value Destroyed (473) 473 Prototype IDs (2) 40 Alien Tech Used (0) 0 Bonus (200) 200 TOTAL SCORE: 3023 Bonus ------- Entered Garrisons 200 Cogmind --------- Core Integrity 0/550 Matter 300/300 Energy 100/100 System Corruption 2% Temperature Cool (0) Movement Core (50) Location -8/Garrison Parts ------- > --- POWER (3) -------- (None) > --- PROPULSION (3) --- (None) > --- UTILITY (3) ------ Improved Salvage Targeting Computer > --- WEAPON (2) ------- (None) > --- INVENTORY (5) ---- Trap Extractor (0/4) Peak State ------------ > --- POWER ------------ Improved Ion Engine Improved Ion Engine Light Deuterium Engine > --- PROPULSION ------- Light Treads Backup Propulsion I > --- UTILITY ---------- Scrap Suit Terrain Scanner > --- WEAPON ----------- Light Assault Rifle Improved Light Cannon > --- INVENTORY -------- Trap Extractor Assault Rifle [Rating: 21] Favorites ----------- Power Improved Ion Engine Engine Improved Ion Engine Power Core Micro Nuclear Core Propulsion Light Treads Treads Light Treads Hover Unit Backup Propulsion I Utility Terrain Scanner Device Terrain Scanner Storage Small Storage Unit Processor Improved Salvage Targeting Computer Weapon Assault Rifle Energy Gun Particle Gun Ballistic Gun Assault Rifle Ballistic Cannon Improved Light Cannon Launcher Rocket Launcher Build | -11 -10 -10 -9 -9 -8 -8 ------- Run | Yrd Mat Min Mat Min Mat Gar Slots Evolved 4 | . . . 2 . 2 . Power 2 | . . . 1 . 1 . Propulsion 1 | . . . . . 1 . Utility 1 | . . . 1 . . . Weapon . | . . . . . . . Parts Attached 16 | 6 1 . 3 3 1 2 Power 5 | 1 . . 2 1 1 . Engine 4 | 1 . . 2 . 1 . Core 1 | . . . . 1 . . Reactor . | . . . . . . . Propulsion 2 | 2 . . . . . . Treads 2 | 2 . . . . . . Leg . | . . . . . . . Wheel . | . . . . . . . Hover . | . . . . . . . Flight . | . . . . . . . Utility 4 | 1 1 . . 1 . 1 Device 2 | . 1 . . 1 . . Storage 1 | 1 . . . . . . Processor 1 | . . . . . . 1 Hackware . | . . . . . . . Protection . | . . . . . . . Artifact . | . . . . . . . Weapon 5 | 2 . . 1 1 . 1 Energy Gun 1 | . . . . . . 1 Energy Cannon . | . . . . . . . Ballistic Gun 2 | 2 . . . . . . Ballistic Cannon 1 | . . . . 1 . . Launcher 1 | . . . 1 . . . Special Weapon . | . . . . . . . Impact Weapon . | . . . . . . . Slashing Weapon . | . . . . . . . Piercing Weapon . | . . . . . . . Special Melee Weapon . | . . . . . . . Unidentified Prototypes . | . . . . . . . Parts Lost 13 | . . . 1 1 . 11 Power 4 | . . . 1 . . 3 Propulsion 2 | . . . . . . 2 Utility 2 | . . . . . . 2 Weapon 5 | . . . . 1 . 4 Highest Loss Streak 4 | . . . 1 1 . 4 To Critical Strikes . | . . . . . . . Average Backups 1 | . . . . 1 2 2 Power . | . . . . . . . Propulsion . | . . . . . . . Utility . | . . . . . 1 1 Weapon . | . . . . 1 1 1 Tool/Special . | . . . . . . . Unused Backups 1 | . . . . . . 1 Power . | . . . . . . . Propulsion . | . . . . . . . Utility 1 | . . . . . . 1 Weapon . | . . . . . . . Tool/Special . | . . . . . . . Average Slot Usage (%) 74 | . 95 100 79 83 79 54 Engine 16 | . 14 14 13 21 25 12 Treads 11 | . 28 28 18 11 9 2 Hover 7 | . . . 3 11 9 7 Device 12 | . 9 14 11 14 18 10 Storage 5 | . 14 14 11 7 . . Processor 1 | . . . . . . 4 Energy Gun 1 | . . . . . . 5 Ballistic Gun 13 | . 28 28 13 12 9 8 Ballistic Cannon 2 | . . . . . 9 3 Launcher 2 | . . . 8 4 . . Peak Build Rating 21 | 6 7 7 11 18 21 21 Average Rating 13 | 4 6 7 8 12 20 16 On Entrance 10 | . 6 7 7 11 18 21 Naked Turns . | . . . . . . . Heaviest Build 29 | 14 15 15 26 26 29 29 Greatest Support 40 | 40 40 40 40 6 6 6 Greatest Overweight (x) 4 | 1 . . 4 4 4 4 Average Overweight (x) 1 | . . . . 3 3 1 Largest Inventory Capacity 8 | 8 8 8 8 8 5 5 Average Capacity 6 | 7 8 8 8 7 5 5 Most Carried 4 | 2 1 . 3 3 3 4 Average Carried 1 | . . . . 1 2 2 Final Capacity 8 | 8 8 8 8 5 5 5 Final Carried 2 | . . . 1 2 2 1 Class Distribution -------------------- 100% | Mutant Dominant Class ---------------- Mutant | -10/Materials Mutant | -10/Mines Mutant | -9/Materials Mutant | -9/Mines Mutant | -8/Materials Mutant | -8/Garrison Resources | -11 -10 -10 -9 -9 -8 -8 ----------- Run | Yrd Mat Min Mat Min Mat Gar Matter Collected 602 | 210 54 10 143 82 . 103 Remotely . | . . . . . . . Salvage Created 549 | . 54 49 168 49 . 229 Parts 28 | . 7 4 2 5 . 10 Haulers Intercepted . | . . . . . . . Recyclers Shooed . | . . . . . . . Parts Field Recycled . | . . . . . . . Retrieved Matter . | . . . . . . . Parts Self-Destructed . | . . . . . . . Prevented . | . . . . . . . Kills | -11 -10 -10 -9 -9 -8 -8 ------- Run | Yrd Mat Min Mat Min Mat Gar Combat Hostiles Destroyed 20 | . 3 3 3 3 . 8 Melee 1 | . . . . . . 1 Guns 16 | . 3 3 3 3 . 4 Cannons 3 | . . . . . . 3 Classes Destroyed 5 | . 2 . 1 . . 2 Watcher 2 | . 1 . 1 . . . Swarmer 13 | . 3 3 . 3 . 4 Grunt 5 | . . . 3 . . 2 Duelist 1 | . . . . . . 1 Hunter 1 | . . . . . . 1 Best Kill Streak 5 | . 3 3 2 3 . 5 Combat Bots Only 5 | . 3 3 2 3 . 5 Max Kills in Single Turn 2 | . 1 2 1 1 . 1 Gunslinging 1 | . . 1 . . . . Exploded . | . . . . . . . Melee 1 | . . . . . . 1 Uniques/NPCs Destroyed . | . . . . . . . Combat | -11 -10 -10 -9 -9 -8 -8 -------- Run | Yrd Mat Min Mat Min Mat Gar Hostile Shots Fired 255 | . 27 12 31 6 . 179 Missed 70 | . 6 4 8 1 . 51 Hits 185 | . 21 8 23 5 . 128 Melee 8 | . . . . . . 8 Projectile 177 | . 21 8 23 5 . 120 Critical Strikes 9 | . . . 1 . . 8 Damage Taken 2253 | . 174 68 350 54 . 1607 Core 709 | . 37 16 92 6 . 558 Absorbed by Shields 10 | . . . . . . 10 Regen/Repaired (Parts) 129 | . . . 99 20 . 10 Core Remaining (%) 84 | 100 . 78 . 75 . . Volleys Fired 80 | . 7 5 24 5 . 39 Largest 2 | . 2 2 1 1 . 2 Hottest 65 | . 40 40 20 20 . 65 Shots Fired 96 | . 14 10 24 5 . 43 Gun 83 | . 14 10 24 5 . 30 Cannon 13 | . . . . . . 13 Launcher . | . . . . . . . Special . | . . . . . . . Kinetic 73 | . 14 10 24 5 . 20 Thermal 23 | . . . . . . 23 Explosive . | . . . . . . . Electromagnetic . | . . . . . . . Robot Hit Streak 7 | . 2 3 7 4 . 6 Robot Miss Streak 4 | . 2 3 3 1 . 4 Penetration Max . | . . . . . . . Secondary Targets 2 | . 1 1 . . . . Max Gunslinging Chain 1 | . 1 1 . . . . Shots Hit Robots 56 | . 7 5 15 4 . 25 Core Hits 34 | . 4 3 7 4 . 16 Critical Kills . | . . . . . . . Critical Parts Destroyed 1 | . . . . 1 . . Critical Strikes 2 | . . . . 1 . 1 Burn 1 | . . . . . . 1 Destroy 1 | . . . . 1 . . Melee Attacks . | . . . . . . . Impact . | . . . . . . . Slashing . | . . . . . . . Piercing . | . . . . . . . Sneak Attacks . | . . . . . . . Combat Hostiles . | . . . . . . . Follow-up Attacks . | . . . . . . . Damage Inflicted 877 | . 113 63 198 53 . 450 Guns 676 | . 113 63 198 52 . 250 Cannons 176 | . . . . . . 176 Explosions . | . . . . . . . Melee . | . . . . . . . Ramming 25 | . . . . 1 . 24 Kinetic 672 | . 113 63 198 52 . 246 Thermal 180 | . . . . . . 180 Explosive . | . . . . . . . Electromagnetic . | . . . . . . . Impact . | . . . . . . . Slashing . | . . . . . . . Piercing . | . . . . . . . Highest Corruption 2 | . . . . . . 2 Average Corruption 2 | . . . . . . 2 Corruption Purged . | . . . . . . . Corruption Blocked . | . . . . . . . Overload Shots . | . . . . . . . Overflow Damage . | . . . . . . . Projectiles . | . . . . . . . Explosions . | . . . . . . . Melee . | . . . . . . . Knockbacks 2 | . . . . . . 2 Impact . | . . . . . . . Kinetic 2 | . . . . . . 2 Secondary . | . . . . . . . Self-Inflicted Damage 12 | . . . . . . 12 Shots . | . . . . . . . Rammed 4 | . . . . 1 . 3 Targets Rammed 4 | . . . . 1 . 3 Kicked . | . . . . . . . Crushed . | . . . . . . . Highest Temperature 129 | . . . 20 . . 129 Average Temperature 62 | . . . 10 . . 65 Received Heat Transfer 678 | . 6 . 198 . . 474 Siege Activations . | . . . . . . . Martial Activations . | . . . . . . . Shielding Activations . | . . . . . . . Robots Disrupted . | . . . . . . . Combat Hostiles . | . . . . . . . Robots Corrupted . | . . . . . . . Combat Hostiles . | . . . . . . . Parts Fried . | . . . . . . . Impact Corruptions . | . . . . . . . Robots Melted . | . . . . . . . Combat Hostiles . | . . . . . . . Parts Melted 3 | . . . . . . 3 Heat Transferred 518 | . . . . . . 518 Parts Sabotaged . | . . . . . . . Parts Stolen . | . . . . . . . Parts Stripped . | . . . . . . . Power Chain Reactions . | . . . . . . . Alert | -11 -10 -10 -9 -9 -8 -8 ------- Run | Yrd Mat Min Mat Min Mat Gar Maximum Alert Level . | . . . . . . . Low Security (%) 100 | 100 100 100 100 100 100 100 Level 1 . | . . . . . . . Level 2 . | . . . . . . . Level 3 . | . . . . . . . Level 4 . | . . . . . . . Level 5 . | . . . . . . . High Security . | . . . . . . . Max Security . | . . . . . . . Peak Influence 100 | . 60 70 50 62 1 100 Initial 23 | . . . 23 . 1 . Average 16 | . 25 8 19 8 . 28 Influence Increases 476 | . 82 70 84 70 . 170 Destroy 0b10 Robot/C 400 | . 60 60 60 60 . 160 Destroy 0b10 Robot/NC 10 | . 5 . 5 . . . Destroy Leader 54 | . 12 10 12 10 . 10 Successful Hack 11 | . 5 . 6 . . . Destroy Structure 1 | . . . 1 . . . Influence Decreases 386 | . 82 10 144 64 6 80 Entered New Map 42 | . . . 37 . 5 . Time Decay 254 | . 82 10 97 64 1 . Lost Part 90 | . . . 10 . . 80 Squads Dispatched 3 | . . . 2 . 1 . Investigation 2 | . . . 1 . 1 . Extermination . | . . . . . . . Reinforcement 1 | . . . 1 . . . Assault . | . . . . . . . Garrison . | . . . . . . . Intercept . | . . . . . . . Searches Triggered . | . . . . . . . Construction Impeded . | . . . . . . . Haulers Reinforced . | . . . . . . . Active Scanning Responses . | . . . . . . . Cargo Convoy Interrupts . | . . . . . . . Stealth | -11 -10 -10 -9 -9 -8 -8 --------- Run | Yrd Mat Min Mat Min Mat Gar Distress Signals . | . . . . . . . Communications Jammed . | . . . . . . . Distress Signals . | . . . . . . . Times Spotted 31 | . 5 3 6 3 . 14 Peak Tracking Total 7 | . 3 3 3 3 . 7 Tactical Retreats . | . . . . . . . Traps | -11 -10 -10 -9 -9 -8 -8 ------- Run | Yrd Mat Min Mat Min Mat Gar Traps Triggered 6 | . . . 1 . . 5 Indirectly . | . . . . . . . Trap Hack Attempts . | . . . . . . . Triggered . | . . . . . . . Disarmed . | . . . . . . . Reprogrammed . | . . . . . . . Reused . | . . . . . . . Traps Extracted . | . . . . . . . Installed . | . . . . . . . Triggered . | . . . . . . . Machines | -11 -10 -10 -9 -9 -8 -8 ---------- Run | Yrd Mat Min Mat Min Mat Gar Machines Disabled . | . . . . . . . Max in Single Turn . | . . . . . . . Machines Repaired . | . . . . . . . Machines Dismantled . | . . . . . . . Machines Sabotaged . | . . . . . . . Overloaded Fab Kills . | . . . . . . . Hacking | -11 -10 -10 -9 -9 -8 -8 --------- Run | Yrd Mat Min Mat Min Mat Gar Machines Accessed 6 | . 1 . 1 1 3 . Terminals 2 | . 1 . . . 1 . Fabricators . | . . . . . . . Repair Stations 1 | . . . 1 . . . Recycling Units . | . . . . . . . Scanalyzers 1 | . . . . . 1 . Garrison Access 1 | . . . . . 1 . Total Hacks 20 | . 2 . 6 1 11 . Successful 14 | . 1 . 3 1 9 . Failed 6 | . 1 . 3 . 2 . Catastrophic 1 | . . . 1 . . . Database Lockouts . | . . . . . . . Manual . | . . . . . . . Terminals 4 | . 2 . . . 2 . Fabricators . | . . . . . . . Repair Stations 6 | . . . 6 . . . Recycling Units . | . . . . . . . Scanalyzers 6 | . . . . . 6 . Garrison Access 3 | . . . . . 3 . Terminal Hacks 4 | . 1 . . 1 2 . Record 1 | . . . . . 1 . Robot Analysis 1 | . 1 . . . . . Prototype ID Bank 1 | . . . . . 1 . Open Door 1 | . . . . 1 . . Fabricator Hacks . | . . . . . . . Repair Station Hacks 3 | . . . 3 . . . Scan Component 1 | . . . 1 . . . Repair 1 | . . . 1 . . . Refit 1 | . . . 1 . . . Recycling Unit Hacks . | . . . . . . . Scanalyzer 6 | . . . . . 6 . Insert Component 2 | . . . . . 2 . Analyze 4 | . . . . . 4 . Garrison Access Hacks 1 | . . . . . 1 . Unlock Access 1 | . . . . . 1 . Unauthorized Hacks . | . . . . . . . Terminals . | . . . . . . . Fabricators . | . . . . . . . Repair Stations . | . . . . . . . Recycling Units . | . . . . . . . Scanalyzers . | . . . . . . . Garrison Access . | . . . . . . . Data Cores Recovered . | . . . . . . . Used . | . . . . . . . Hacking Detections 4 | . 1 . 1 . 2 . Full Trace Events 2 | . . . 1 . 1 . Feedback Events . | . . . . . . . Feedback Blocked . | . . . . . . . Robot Schematics Acquired . | . . . . . . . Robots Built . | . . . . . . . Authchips . | . . . . . . . Time . | . . . . . . . Total Robot Build Rating . | . . . . . . . Part Schematics Acquired 2 | . . . . . 2 . Parts Built . | . . . . . . . Authchips . | . . . . . . . Time . | . . . . . . . Total Part Build Rating . | . . . . . . . Parts Repaired 1 | . . . 1 . . . Time 26 | . . . 26 . . . Parts Recycled . | . . . . . . . Recycled Matter . | . . . . . . . Retrieved Matter . | . . . . . . . Retrieved Components . | . . . . . . . Parts Scanalyzed 2 | . . . . . 2 . Part Schematics Acquired 2 | . . . . . 2 . Parts Damaged . | . . . . . . . Bothacking | -11 -10 -10 -9 -9 -8 -8 ------------ Run | Yrd Mat Min Mat Min Mat Gar Used RIF Installer . | . . . . . . . Robots Hacked . | . . . . . . . Non-combat . | . . . . . . . Combat . | . . . . . . . Robot Hacks Applied . | . . . . . . . Relay Couplers Released . | . . . . . . . Fabnet Peak Effective % . | . . . . . . . Robots Rewired . | . . . . . . . Allies Hacked . | . . . . . . . Hacks Repelled . | . . . . . . . Allies | -11 -10 -10 -9 -9 -8 -8 -------- Run | Yrd Mat Min Mat Min Mat Gar Total Allies . | . . . . . . . Largest Group . | . . . . . . . Highest-Rated Group . | . . . . . . . Highest-Rated Ally . | . . . . . . . Total Orders . | . . . . . . . Ally Attacks . | . . . . . . . Total Damage . | . . . . . . . Kills . | . . . . . . . Allies Corrupted . | . . . . . . . Allies Melted . | . . . . . . . Intel | -11 -10 -10 -9 -9 -8 -8 ------- Run | Yrd Mat Min Mat Min Mat Gar Active Infowar (turns) 6 | . 6 . . . . . Terrain 6 | . 6 . . . . . Robot Analysis Total 1 | . 1 . . . . . Derelict Logs Recovered 1 | . . . . 1 . . Drone Launches . | . . . . . . . Drone Recoveries . | . . . . . . . Exploration | -11 -10 -10 -9 -9 -8 -8 ------------- Run | Yrd Mat Min Mat Min Mat Gar Turns Passed 2526 | 85 204 155 245 668 293 876 Spaces Moved 907 | 50 111 82 91 170 72 331 Core 112 | 8 . . . . . 104 Treads 308 | 42 111 82 73 . . . Legs . | . . . . . . . Wheels . | . . . . . . . Hover 487 | . . . 18 170 72 227 Flight . | . . . . . . . Fastest Speed 50 | 50 160 160 160 340 340 50 Average Speed 245 | 147 160 160 211 368 408 220 Slowest Speed 420 | 160 160 160 420 420 420 420 Overloaded Moves . | . . . . . . . Propulsion Burnouts . | . . . . . . . Robots Hopped . | . . . . . . . Potential Cave-ins . | . . . . . . . Cave-ins Triggered . | . . . . . . . Exploration Rate (%) 18 | 3 19 21 12 37 6 31 Regions Visited 6 Branch Regions 2 Pre-discovered Areas 1 | . . . . 1 . . Known Exits Taken 1 | . . . . . 1 . Unknown Exits Taken 5 | 1 1 1 1 1 . . Scrap Searched 1 | . . . . 1 . . Spaces Dug . | . . . . . . . Terrain Destroyed . | . . . . . . . Melee . | . . . . . . . Projectile . | . . . . . . . AOE . | . . . . . . . Terrain Rammed . | . . . . . . . Walls Destroyed . | . . . . . . . Machines Disabled . | . . . . . . . Actions | -11 -10 -10 -9 -9 -8 -8 --------- Run | Yrd Mat Min Mat Min Mat Gar Total 1115 | 61 124 96 122 206 73 433 Wait 35 | . 5 10 . 20 . . Move 898 | 49 110 81 90 169 71 328 Hop . | . . . . . . . Pick Up 17 | 6 1 . 3 4 1 2 Fast Attach . | . . . . . . . Attach 15 | 6 1 . 3 1 1 3 Detach 1 | . . . 1 . . . Swap 5 | . . . 1 3 . 1 Drop 3 | . . . . 3 . . Fire 80 | . 7 5 24 5 . 39 Melee . | . . . . . . . Ram 4 | . . . . 1 . 3 Kick . | . . . . . . . Crush . | . . . . . . . Escape Stasis 57 | . . . . . . 57 Rewire . | . . . . . . . Trap . | . . . . . . . Miscellaneous . | . . . . . . . Route ------- -11/Scrapyard -10/Materials -10/Mines (discovered 2 exits: *Mat x2) -9/Materials -9/Mines -8/Materials -8/Garrison (discovered 1 exit: [*Mat]) History --------- Turn | Location | Event 8 | -11/Scrapyard | Discovered new exit (range 15) 86 | -11/Scrapyard | Entered Materials 262 | -10/Materials | Discovered new exit (range 16) 290 | -10/Materials | Entered Mines 295 | -10/Mines | Discovered new exit (range 8) 302 | -10/Mines | Build established: Mutant 325 | -10/Mines | Met a Derelict bent on vengeance 432 | -10/Mines | Discovered new exit (range 6) 445 | -10/Mines | Entered Materials 445 | -9/Materials | Evolved 2 slots: Power x1, Utility x1 601 | -9/Materials | Discovered new exit (range 11) 644 | -9/Materials | Repaired Lgt. Treads? 690 | -9/Materials | Entered Mines 943 | -9/Mines | Met a Derelict who couldn't figure out how to use a Trap Extractor 1108 | -9/Mines | Learned location of Storage (-8) 1142 | -9/Mines | Found a Scrap Suit stashed away for nefarious purposes 1163 | -9/Mines | Found Scrap Suit 1223 | -9/Mines | Discovered new exit (range 14) 1358 | -9/Mines | Entered Materials 1358 | -8/Materials | Evolved 2 slots: Power x1, Propulsion x1 1638 | -8/Materials | Identified exit to Garrison 1651 | -8/Materials | Entered Garrison 1853 | -8/Garrison | Triggered checkpoint 1929 | -8/Garrison | Lost 4 parts (2p1n1u) 2446 | -8/Garrison | Lost 4 parts (1p1n2w) 2465 | -8/Garrison | Triggered checkpoint 2487 | -8/Garrison | Triggered checkpoint 2494 | -8/Garrison | Discovered new exit (range 14) 2503 | -8/Garrison | Attempted to access garrison exit controls, blocked by remote lockdown 2511 | -8/Garrison | Core integrity fell below 50% 2517 | -8/Garrison | Core integrity fell below 20% 2527 | -8/Garrison | Destroyed by Y-45 Defender with Heavy Assault Rifle Last Messages --------------- Penetrated by Slug. Critical hit (Burn: +37). Penetrated by Slug. L-31 Rogue destroyed. Slammed into S-10 Pest. S-10 Pest destroyed. [Achievement: Fist Fight] Slammed into Y-45 Defender. Destabilizing: System corrupted (+2). Penetrated by Slug. Y-45 Defender destroyed. Slammed into Y-45 Defender. Triggered Stasis Trap. A bubble of rippling energy engulfs the area. Field strength at 94. Field strength at 88. Field strength at 82. Field strength at 76. Field strength at 65. Field strength at 59. Map ----- +----------------------------------------------------+ | ?????????????????????????????????????????????????? | | ?????????????????????????????????????????????????? | | ?????????????????????????????????????????????????? | | ?????????????????????????????????????????????????? | | ?????????????????????????????????????????????????? | | ?????????????????????????????????????????????????? | | ?????????????????????????????????????????????????? | | ?????????????????????????????????????????????????? | | ?????????????????????????????????????????????????? | | ?????????????????????????????????????????????????? | | ?????????????????????????????????????????????????? | | ?????????????????????????????????????????????????? | | ?????????????????????????????????????????????????? | | ?????????????????????????????????????????????????? | | ?????????????????????????????????????????????????? | | ?????????????????????????????????????????????????? | | ???????????????????????###???????????????????????? | | ?????????????????????### #??????????????????????? | | ??????????????????????"# #??????????????????????? | | ??????????????????????" #??????????????????????? | | ??????????????????????? #??????????????????????? | | ??????????????????????? #??????????????????????? | | ???????????????????????# #??????????????????????? | | ???????????????????????# #??????????????????????? | | ???????????????????????# #??????????????????????? | | ???????????????????????# @#??????????????????????? | | ?????????????????????### #??????????????????????? | | ?????????????????????# #??????????????????????? | | ?????????????????????# #??????????????????????? | | ?????????????????????# #??????????????????##### | | ?????????????????????### #??????????????????# # | | ?????????????###########Yx#################### < # | | ????????????## ! # | | ????????????#T %! !%/ # | | ????????????## %%= % # | | ?????????????# ################################# | | ?????????????# #???????????????????????????????? | | ?????????????# #???????????????????????????????? | | ?????????????# #???????????????????????????????? | | ?????????????# #???????????????????????????????? | | ??# ???####??# #???????????????????????????????? | | ??# ?# ?# #???????????????????????????????? | | ??# ## ## #???????????????????????????????? | | ??# #???????????????????????????????? | | ??# #???????????????????????????????? | | ??# #???????????????????????????????? | | ??# ## ## #???????????????????????????????? | | ??# ## ## ###?????????????????????????????? | | ??" #?????????????????????????????? | | ??" #?????????????????????????????? | +----------------------------------------------------+ Best States ------------- Heat Dissipation 31 Energy Generation 28 Energy Capacity 470 Matter Stores 300 Matter Capacity 300 Sight Range 16 Terrain Scan Range 14 Terrain Scan Density 10 Evasion (%) 50 Recoil Reduction 2 Salvage Targeting 2 Item Schematics ----------------- Trap Extractor | -8/Materials | Scanalyzed Assault Rifle | -8/Materials | Scanalyzed Robot Schematics ------------------ None Fabricated ------------ Nothing Repaired ---------- Lgt. Treads | 29% | -9/Materials Alien Tech Used ----------------- None Achievements -------------- Fist Fight Part-time Mechanic Challenges ------------ None Game ------ Seed AlloyMultinovaMachine Manual? 0 Play Time 00:28:11 Cumulative 2.1 hours Start 2025.07.27 @ 19:11:13 End 2025.07.27 @ 19:55:09 Sessions 1 Manual Loads 0 Difficulty Rogue Special Mode None Game No. 5 Rogue 5 Adventurer 0 Explorer 0 Win Type - Total 0 Types 0/0/0/0/0/0/0/0/0/0 Lore% 1 Gallery% 4 Achievement% 5 Wizard Run 0 Options --------- Layout 1 ASCII 0 Keyboard 0 Movement Arrows Keybinds 0 Fullscreen 1 Font 24/Smallcaps Map View 50x40 Zoom Use 4% Tactical HUD 0 Map Filters NONE Filters NONE Steam 1 RUN: f543f3a9-23d5-4c97-a2b6-2e684d5872ed